bitfinex/quotes_SOLUSD_20230112
["timestamp","ask_amount","ask_price","bid_price","bid_amount"]
[1673525739017,17.0,16.115,16.103,20.0]
[1673525739247,17.0,16.116,16.103,20.0]
[1673525739570,23.95052,16.116,16.103,20.0]
[1673525740191,70.49052,16.116,16.103,20.0]
[1673525740388,6.95052,16.115,16.103,20.0]
[1673525740723,17.0,16.114,16.103,20.0]
[1673525740906,17.0,16.114,16.101,20.0]
[1673525741770,23.95052,16.114,16.101,20.0]
[1673525742174,23.95052,16.114,16.1,46.59]
[1673525742391,6.95052,16.113,16.099,46.59]
[1673525742709,17.0,16.112,16.099,20.0]
[1673525742918,17.0,16.112,16.098,46.59]
[1673525743870,17.0,16.112,16.099,20.0]
[1673525745661,17.0,16.112,16.1,46.59]
[1673525748391,17.0,16.112,16.099,20.0]
[1673525748583,17.0,16.112,16.098,46.59]
[1673525748793,17.0,16.112,16.097,66.59]
[1673525750596,104.136998,16.115,16.098,20.0]
[1673525750913,104.136998,16.115,16.1,20.0]
[1673525751109,46.55,16.114,16.1,20.0]
[1673525751871,46.55,16.114,16.099,46.59]
[1673525752382,46.55,16.114,16.098,66.59]
[1673525752895,17.0,16.113,16.098,66.59]
[1673525755532,17.0,16.113,16.098,46.59]
[1673525755741,17.0,16.113,16.097,46.59]
[1673525758387,13.1,16.11,16.097,46.59]
[1673525758574,17.0,16.109,16.097,46.59]
[1673525760567,17.0,16.109,16.096,66.6]
[1673525762268,17.0,16.109,16.096,46.6]
[1673525763008,17.0,16.109,16.093,46.61]
[1673525763199,17.0,16.109,16.094,20.0]
[1673525763411,17.0,16.109,16.095,46.6]
[1673525763622,17.0,16.109,16.096,20.0]
[1673525763827,20.0,16.108,16.096,20.0]
[1673525764038,17.0,16.107,16.096,20.0]
[1673525764252,17.0,16.107,16.093,46.61]
[1673525764253,17.0,16.107,16.094,20.0]
[1673525764555,17.0,16.107,16.095,46.6]
[1673525764780,17.0,16.108,16.096,20.0]
[1673525765096,37.0,16.109,16.096,20.0]
[1673525765307,17.0,16.109,16.096,20.0]
[1673525765517,17.0,16.109,16.095,40.0]
[1673525766054,17.0,16.109,16.095,20.0]
[1673525767186,17.0,16.109,16.096,46.6]
[1673525768239,124.1619,16.11,16.096,46.6]
[1673525768672,124.1619,16.11,16.097,20.0]
[1673525768978,124.1619,16.11,16.098,46.59]
[1673525769815,17.0,16.109,16.098,46.59]
[1673525770248,17.0,16.109,16.096,46.6]
[1673525781280,46.55,16.114,16.096,64.19519267]
[1673525781616,104.136998,16.115,16.1,13.04]
[1673525781799,1687.493921,16.12,16.101,65.5]
[1673525782155,1687.493921,16.12,16.102,20.0]
[1673525782459,1629.533921,16.12,16.11,65.71]
[1673525782641,1629.533921,16.12,16.112,20.0]
[1673525782860,1629.533921,16.12,16.113,83.55]
[1673525783090,1610.618721,16.12,16.114,20.0]
[1673525783274,1588.581521,16.12,16.115,46.54]
[1673525783601,1438.581521,16.12,16.116,37.0]
[1673525783813,1438.581521,16.12,16.117,66.54]
[1673525784023,1413.408321,16.12,16.117,66.54]
[1673525784230,1413.408321,16.12,16.117,46.54]
[1673525784438,1388.150721,16.12,16.117,46.54]
[1673525784638,1388.150721,16.12,16.118,20.0]
[1673525784639,1210.650721,16.12,16.118,20.0]
[1673525784860,1152.880721,16.12,16.118,20.0]
[1673525786132,1152.880721,16.12,16.119,17.0]
[1673525786750,1152.880721,16.12,16.118,20.0]
[1673525787686,1152.880721,16.12,16.118,20.0]
[1673525787914,1152.880721,16.12,16.118,19.5]
[1673525788442,1152.880721,16.12,16.118,37.09519267]
[1673525790437,1152.880721,16.12,16.116,68.33703635]
[1673525790646,1152.880721,16.12,16.116,85.93222902]
[1673525791579,1152.880721,16.12,16.116,68.33703635]
[1673525791789,1152.880721,16.12,16.116,85.93222902]
[1673525793586,1152.880721,16.12,16.116,37.59519267]
[1673525794329,1152.880721,16.12,16.116,20.0]
[1673525794522,1152.880721,16.12,16.115,20.0]
[1673525796203,1152.880721,16.12,16.116,17.59519267]
[1673525798304,1108.290821,16.12,16.115,20.0]
[1673525800843,46.49,16.134,16.125,20.0]
[1673525801161,46.49,16.134,16.125,72.25933435]
[1673525803264,66.49,16.134,16.125,72.25933435]
[1673525803480,17.0,16.133,16.125,72.25933435]
[1673525803664,46.49,16.132,16.125,72.25933435]
[1673525804185,66.49,16.134,16.125,72.25933435]
[1673525804395,20.0,16.132,16.125,72.25933435]
[1673525804605,46.49,16.132,16.125,72.25933435]
[1673525805022,46.49,16.133,16.125,72.25933435]
[1673525806316,66.49,16.134,16.125,72.25933435]
[1673525807166,46.49,16.134,16.125,72.25933435]
[1673525807382,154.6521,16.135,16.125,72.25933435]
[1673525812740,108.1721,16.135,16.126,37.59519267]
[1673525814523,108.1721,16.135,16.126,17.59519267]
[1673525816725,46.48,16.136,16.126,69.85452702]
[1673525817044,115.8814,16.137,16.128,20.0]
[1673525817466,115.8814,16.137,16.128,89.85452702]
[1673525818080,115.8814,16.137,16.128,52.25933435]
[1673525818308,20.0,16.136,16.125,20.0]
[1673525818500,66.48,16.136,16.123,72.25933435]
[1673525819037,66.48,16.136,16.123,89.85452702]
[1673525819231,46.48,16.136,16.124,72.25933435]
[1673525819568,232.4416,16.137,16.125,106.85452702]
[1673525819766,20.0,16.136,16.125,106.85452702]
[1673525819965,20.0,16.136,16.126,69.85452702]
[1673525823250,20.0,16.136,16.126,52.25933435]
[1673525824600,17.0,16.135,16.126,52.25933435]
[1673525826174,20.0,16.136,16.126,52.25933435]
[1673525826382,17.0,16.135,16.126,52.25933435]
[1673525826609,20.0,16.136,16.126,52.25933435]
[1673525827431,17.0,16.135,16.126,52.25933435]
[1673525828077,20.0,16.134,16.125,20.0]
[1673525828404,17.0,16.133,16.122,20.0]
[1673525828803,17.0,16.133,16.122,37.59519267]
[1673525839448,17.0,16.133,16.122,20.0]
[1673525840172,17.0,16.133,16.122,37.59519267]
[1673525840381,17.0,16.132,16.122,37.59519267]
[1673525840699,17.0,16.134,16.122,37.59519267]
[1673525841101,20.0,16.133,16.122,17.59519267]
[1673525841320,20.0,16.133,16.115,20.0]
[1673525841321,1.52982941,16.128,16.091,32.1926055]
[1673525841529,21.52982941,16.126,16.095,20.0]
[1673525841750,21.52982941,16.124,16.095,20.0]
[1673525841962,13.14,16.12,16.095,20.0]
[1673525842172,46.53,16.119,16.095,63.69889528]
[1673525842367,17.0,16.118,16.095,63.69889528]
[1673525842573,20.0,16.116,16.095,63.69889528]
[1673525842804,63.54,16.115,16.097,20.0]
[1673525843001,46.54,16.117,16.1,13.07]
[1673525843966,20.0,16.115,16.1,13.07]
[1673525844170,17.0,16.114,16.1,13.07]
[1673525844389,17.0,16.114,16.101,20.0]
[1673525844570,17.0,16.114,16.1,13.07]
[1673525844785,17.0,16.114,16.097,63.69889528]
[1673525845119,17.0,16.114,16.092,43.69889528]
[1673525845120,20.0,16.112,16.092,43.69889528]
[1673525845427,33.04,16.11,16.093,20.0]
[1673525845648,17.0,16.109,16.093,20.0]
[1673525846263,63.56,16.109,16.093,20.0]
[1673525846478,123.6731,16.11,16.095,20.0]
[1673525846693,123.6731,16.11,16.096,20.0]
[1673525847621,46.56,16.109,16.096,20.0]
[1673525848468,110.6331,16.11,16.096,20.0]
[1673525848675,46.55,16.111,16.096,20.0]
[1673525848885,46.54,16.115,16.101,20.0]
[1673525849099,46.54,16.117,16.102,20.0]
[1673525850566,20.0,16.116,16.102,20.0]
[1673525850776,46.54,16.115,16.102,20.0]
[1673525850991,20.0,16.116,16.102,20.0]
[1673525851211,46.54,16.115,16.102,20.0]
[1673525851419,46.54,16.115,16.103,17.0]
[1673525851632,46.54,16.115,16.104,20.0]
[1673525852167,46.54,16.115,16.102,20.0]
[1673525852393,46.54,16.115,16.103,0.96]
[1673525853451,46.54,16.115,16.101,20.0]
[1673525853638,17.0,16.114,16.098,20.0]
[1673525853851,46.55,16.113,16.097,43.69889528]
[1673525854163,37.0,16.112,16.092,43.69889528]
[1673525854372,46.55,16.111,16.092,43.69889528]
[1673525854586,116.2256,16.11,16.092,43.69889528]
[1673525854819,46.56,16.109,16.092,43.69889528]
[1673525855019,46.56,16.109,16.096,17.0]
[1673525856899,129.3656,16.11,16.096,17.0]
[1673525859214,20.0,16.108,16.096,17.0]
[1673525859416,46.56,16.109,16.096,17.0]
[1673525859620,66.56,16.109,16.096,17.0]
[1673525860368,66.56,16.109,16.092,43.69889528]
[1673525860572,20.0,16.107,16.093,20.0]
[1673525860787,46.57,16.106,16.093,20.0]
[1673525861196,46.57,16.106,16.091,20.0]
[1673525861840,46.57,16.106,16.092,20.96]
[1673525862169,46.57,16.106,16.093,20.0]
[1673525863747,20.0,16.107,16.093,20.0]
[1673525863942,46.57,16.106,16.093,20.0]
[1673525864787,20.0,16.105,16.091,20.0]
[1673525865001,46.57,16.104,16.091,20.0]
[1673525865858,46.57,16.106,16.091,20.0]
[1673525866044,20.0,16.105,16.091,20.0]
[1673525866364,46.57,16.104,16.091,20.0]
[1673525868044,46.57,16.106,16.091,20.0]
[1673525871848,20.0,16.107,16.091,20.0]
[1673525872039,46.57,16.106,16.091,20.0]
[1673525872455,46.57,16.106,16.092,20.0]
[1673525872681,46.57,16.106,16.093,20.0]
[1673525872886,46.57,16.107,16.093,20.0]
[1673525873215,46.56,16.108,16.093,20.0]
[1673525873406,46.56,16.109,16.094,0.96]
[1673525873613,46.56,16.109,16.094,20.96]
[1673525873817,46.56,16.109,16.095,20.0]
[1673525875110,20.0,16.108,16.088,20.0]
[1673525875302,17.51,16.1,16.091,26.55454562]
[1673525875626,46.59,16.099,16.082,20.0]
[1673525876042,46.59,16.099,16.082,36.58967506]
[1673525876672,46.59,16.099,16.083,1.92]
[1673525877615,46.59,16.099,16.083,21.92]
[1673525877940,37.0,16.098,16.083,20.0]
[1673525878149,46.59,16.097,16.083,20.0]
[1673525884661,46.59,16.097,16.084,16.58967506]
[1673525884875,46.59,16.097,16.085,20.0]
[1673525885191,46.59,16.097,16.086,36.58967506]
[1673525885394,46.59,16.099,16.087,20.96]
[1673525885589,46.59,16.1,16.088,0.96]
[1673525885798,46.59,16.1,16.089,20.0]
[1673525886024,46.59,16.1,16.09,13.12]
[1673525886234,46.57,16.104,16.091,20.96]
[1673525886438,46.56,16.108,16.092,20.96]
[1673525886672,46.56,16.108,16.093,20.96]
[1673525886881,46.56,16.108,16.094,20.0]
[1673525887078,46.56,16.108,16.096,20.0]
[1673525887497,46.56,16.108,16.097,16.58967506]
[1673525895485,46.56,16.108,16.095,20.0]
[1673525895692,20.0,16.107,16.093,20.0]
[1673525895906,46.57,16.106,16.093,20.0]
[1673525896237,20.0,16.105,16.093,20.0]
[1673525897496,20.0,16.105,16.094,16.58967506]
[1673525897713,20.0,16.105,16.095,20.0]
[1673525898216,46.57,16.104,16.096,16.58967506]
[1673525900327,46.57,16.106,16.096,16.58967506]
[1673525900533,20.0,16.105,16.096,16.58967506]
[1673525900855,46.57,16.106,16.096,16.58967506]
[1673525902549,20.0,16.106,16.096,16.58967506]
[1673525902977,46.57,16.105,16.096,16.58967506]
[1673525906123,4.1155,16.109,16.097,20.0]
[1673525906321,20.0,16.107,16.096,16.58967506]
[1673525906531,46.57,16.106,16.096,16.58967506]
[1673525906970,46.57,16.106,16.097,17.0]
[1673525908021,20.0,16.105,16.096,16.58967506]
[1673525908344,20.0,16.103,16.095,20.0]
[1673525908541,20.0,16.103,16.093,20.0]
[1673525908746,20.0,16.103,16.092,20.0]
[1673525909477,20.0,16.103,16.093,17.0]
[1673525909697,20.0,16.103,16.094,20.0]
[1673525909911,20.0,16.103,16.094,36.58967506]
[1673525910232,20.0,16.103,16.086,43.02809528]
[1673525910547,63.58,16.102,16.083,160.57130387]
[1673525910941,20.0,16.101,16.083,160.57130387]
[1673525911176,20.0,16.099,16.083,160.57130387]
[1673525911366,17.0,16.098,16.083,160.57130387]
[1673525911582,46.59,16.098,16.085,20.0]
[1673525911792,46.59,16.098,16.086,20.0]
[1673525912220,46.59,16.098,16.085,20.0]
[1673525913284,66.59,16.099,16.085,20.0]
[1673525913619,66.59,16.099,16.086,20.0]
[1673525913815,46.59,16.099,16.087,0.96]
[1673525914032,46.59,16.1,16.087,20.96]
[1673525914242,113.0063,16.101,16.088,0.96]
[1673525914452,113.0063,16.101,16.088,17.54967506]
[1673525915401,113.0063,16.101,16.089,16.58967506]
[1673525915615,46.59,16.1,16.089,16.58967506]
[1673525917500,46.59,16.1,16.086,20.0]
[1673525918119,20.0,16.099,16.086,20.0]
[1673525918329,46.59,16.098,16.087,16.58967506]
[1673525918555,46.59,16.1,16.087,16.58967506]
[1673525918755,66.59,16.1,16.088,20.0]
[1673525919078,66.59,16.1,16.089,16.58967506]
[1673525919830,46.57,16.104,16.09,52.5]
[1673525920028,181.024,16.109,16.091,40.0]
[1673525920237,181.024,16.109,16.091,56.58967506]
[1673525920429,181.024,16.109,16.092,16.58967506]
[1673525920762,181.024,16.109,16.093,63.02809528]
[1673525920948,181.024,16.109,16.094,20.0]
[1673525921163,181.024,16.109,16.095,20.0]
[1673525921373,181.024,16.109,16.095,36.58967506]
[1673525921788,181.024,16.109,16.096,16.58967506]
[1673525922349,20.0,16.107,16.095,20.0]
[1673525922553,20.0,16.105,16.094,20.0]
[1673525922737,46.57,16.104,16.094,20.0]
[1673525923077,46.56,16.108,16.094,20.0]
[1673525923260,20.0,16.107,16.095,16.58967506]
[1673525923466,46.57,16.106,16.095,16.58967506]
[1673525923689,46.57,16.106,16.096,20.0]
[1673525923909,46.57,16.106,16.097,17.0]
[1673525924121,46.57,16.106,16.097,33.58967506]
[1673525924837,46.57,16.107,16.097,33.58967506]
[1673525925807,46.57,16.107,16.098,16.58967506]
[1673525926003,46.57,16.107,16.097,16.58967506]
[1673525927367,20.0,16.107,16.097,16.58967506]
[1673525927585,46.57,16.106,16.097,16.58967506]
[1673525928224,46.57,16.107,16.097,16.58967506]
[1673525930319,46.56,16.108,16.097,16.58967506]
[1673525930531,66.56,16.108,16.097,16.58967506]
[1673525930862,46.56,16.108,16.097,16.58967506]
[1673525932128,46.56,16.109,16.097,16.58967506]
[1673525932354,20.0,16.108,16.097,16.58967506]
[1673525932649,46.57,16.107,16.097,16.58967506]
[1673525933587,46.56,16.108,16.097,16.58967506]
[1673525935902,46.56,16.108,16.096,20.0]
[1673525936224,46.56,16.108,16.096,36.58967506]
[1673525937463,20.0,16.108,16.096,36.58967506]
[1673525937790,46.57,16.107,16.096,36.58967506]
[1673525937996,46.57,16.107,16.096,36.61221242]
[1673525938428,46.57,16.107,16.096,16.61221242]
[1673525940315,46.56,16.108,16.096,16.61221242]
[1673525942951,20.0,16.107,16.095,20.0]
[1673525943161,46.57,16.106,16.093,16.61221242]
[1673525943376,20.0,16.105,16.094,20.0]
[1673525943698,46.57,16.104,16.094,20.0]
[1673525944306,46.57,16.106,16.094,36.61221242]
[1673525945891,66.56,16.108,16.095,20.0]
[1673525946100,46.56,16.108,16.096,20.0]
[1673525946410,46.56,16.108,16.096,36.61221242]
[1673525946619,46.56,16.108,16.097,37.57221242]
[1673525946972,116.2256,16.11,16.1,13.14]
[1673525948843,46.56,16.109,16.1,13.14]
[1673525950117,46.56,16.109,16.097,61.12024161]
[1673525952324,46.56,16.109,16.098,17.0]
[1673525952530,46.56,16.109,16.099,20.0]
[1673525952737,46.56,16.109,16.097,61.12024161]
[1673525952948,46.56,16.109,16.098,17.0]
[1673525956925,46.56,16.109,16.097,60.16024161]
[1673525957139,46.56,16.109,16.096,20.0]
[1673525957381,46.56,16.109,16.093,20.0]
[1673525957580,20.0,16.108,16.093,20.0]
[1673525957901,20.0,16.106,16.093,20.0]
[1673525958095,46.57,16.105,16.093,20.0]
[1673525959355,46.57,16.107,16.093,20.0]
[1673525959574,20.0,16.106,16.093,20.0]
[1673525959783,46.57,16.105,16.093,20.0]
[1673525963375,46.57,16.107,16.094,17.0]
[1673525963568,20.0,16.106,16.095,20.0]
[1673525963780,46.57,16.105,16.095,20.0]
[1673525964198,46.56,16.108,16.094,20.0]
[1673525964409,46.56,16.108,16.095,20.0]
[1673525964620,66.56,16.108,16.095,20.0]
[1673525966007,66.56,16.108,16.096,17.0]
[1673525966951,66.56,16.108,16.094,37.13214633]
[1673525967146,66.56,16.108,16.095,17.0]
[1673525967346,66.56,16.108,16.096,20.0]
[1673525967555,66.56,16.108,16.09,43.02809528]
[1673525967556,37.0,16.107,16.09,43.02809528]
[1673525967771,66.57,16.106,16.084,137.3772]
[1673525968089,20.0,16.104,16.085,37.13214633]
[1673525968412,63.58,16.103,16.085,37.13214633]
[1673525968731,13.14,16.1,16.085,37.13214633]
[1673525968948,0.70367427,16.098,16.085,37.13214633]
[1673525969136,46.59,16.097,16.086,20.0]
[1673525969344,46.59,16.099,16.085,37.13214633]
[1673525969553,46.59,16.099,16.085,20.0]
[1673525969993,46.59,16.099,16.085,37.13214633]
[1673525970610,46.59,16.099,16.086,20.0]
[1673525974614,46.59,16.099,16.087,20.0]
[1673525974820,46.59,16.1,16.087,20.0]
[1673525975036,46.59,16.1,16.087,37.13214633]
[1673525975249,46.59,16.1,16.088,17.13214633]
[1673525977042,46.59,16.1,16.088,43.02809528]
[1673525977260,46.59,16.1,16.089,20.96]
[1673525977458,46.59,16.1,16.091,20.0]
[1673525977670,110.9466,16.101,16.092,0.96]
[1673525977878,110.9466,16.101,16.092,18.09214633]
[1673525978086,66.56,16.108,16.093,20.0]
[1673525978288,116.2256,16.11,16.094,0.96]
[1673525978498,116.2256,16.11,16.095,20.0]
[1673525978727,116.2256,16.11,16.096,20.0]
[1673525978936,116.2256,16.11,16.097,17.96]
[1673525979466,116.2256,16.11,16.099,20.0]
[1673525979660,116.2256,16.11,16.1,13.08]
[1673525980198,116.2256,16.11,16.1,30.21214633]
[1673525980406,46.55,16.112,16.101,20.0]
[1673525980725,46.54,16.115,16.102,20.0]
[1673525980915,46.54,16.115,16.103,17.0]
[1673525981251,46.54,16.115,16.104,20.0]
[1673525981445,46.54,16.115,16.105,17.0]
[1673525981659,46.54,16.115,16.106,20.0]
[1673525982510,19.5,16.115,16.106,20.0]
[1673525982817,20.0,16.113,16.093,20.0]
[1673525983027,46.55,16.112,16.093,132.5804]
[1673525983220,46.55,16.112,16.096,37.13214633]
[1673525983433,20.0,16.111,16.096,83.18534161]
[1673525983640,20.0,16.109,16.096,63.18534161]
[1673525983850,46.56,16.108,16.096,63.18534161]
[1673525986170,46.56,16.109,16.096,63.18534161]
[1673525986903,46.56,16.109,16.097,38.09214633]
[1673525987113,113.8382,16.11,16.097,20.96]
[1673525987752,46.56,16.109,16.097,38.09214633]
[1673525987962,113.8382,16.11,16.1,13.08]
[1673525988183,113.8382,16.11,16.101,20.96]
[1673525988396,113.8382,16.11,16.102,17.0]
[1673525988797,113.8382,16.11,16.1,59.13319528]
[1673525991858,113.8382,16.11,16.101,17.0]
[1673525992706,113.8382,16.11,16.101,16.0]
[1673525998487,113.8382,16.11,16.1,46.05319528]
[1673525999011,46.56,16.109,16.094,17.13214633]
[1673525999202,20.0,16.108,16.095,20.0]
[1673525999412,46.57,16.107,16.095,20.0]
[1673525999634,20.0,16.106,16.094,20.0]
[1673525999842,46.57,16.105,16.094,20.0]
[1673526001092,20.0,16.104,16.088,136.96124633]
[1673526001300,46.58,16.103,16.088,119.8291]
[1673526001524,46.58,16.103,16.086,17.13214633]
[1673526001736,17.52,16.1,16.083,110.84163538]
[1673526001946,0.6864554,16.098,16.084,37.13214633]
[1673526002140,46.59,16.097,16.084,37.13214633]
[1673526002359,66.59,16.099,16.084,17.13214633]
[1673526002571,66.59,16.099,16.085,20.0]
[1673526002775,66.59,16.099,16.084,20.0]
[1673526002993,0.65343262,16.098,16.084,20.0]
[1673526003207,20.0,16.096,16.084,20.0]
[1673526003431,46.6,16.095,16.084,20.0]
[1673526005206,33.16,16.1,16.081,37.13214633]
[1673526005207,20.0,16.109,16.086,20.0]
[1673526005418,26.92243,16.109,16.086,20.0]
[1673526005631,53.48243,16.108,16.086,20.0]
[1673526006060,20.0,16.107,16.086,20.0]
[1673526006371,46.57,16.106,16.086,20.0]
[1673526006559,20.0,16.104,16.086,20.0]
[1673526006770,46.58,16.103,16.086,20.0]
[1673526006984,17.0,16.102,16.087,16.63798783]
[1673526007199,46.58,16.101,16.087,16.63798783]
[1673526007405,118.5227,16.101,16.088,0.96]
[1673526007602,118.5227,16.101,16.089,0.96]
[1673526007815,118.5227,16.101,16.089,17.59798783]
[1673526008046,118.5227,16.101,16.09,16.63798783]
[1673526010777,46.59,16.1,16.09,16.63798783]
[1673526011736,118.5227,16.101,16.09,16.63798783]
[1673526011916,46.57,16.104,16.09,29.68798783]
[1673526012128,46.57,16.107,16.091,20.0]
[1673526012336,46.57,16.107,16.092,20.0]
[1673526012560,46.57,16.107,16.093,20.0]
[1673526012883,46.57,16.107,16.093,36.63798783]
[1673526014768,46.57,16.107,16.093,20.0]
[1673526014983,46.57,16.107,16.093,36.63798783]
[1673526017411,46.56,16.108,16.094,20.0]
[1673526017602,46.56,16.108,16.095,20.96]
[1673526017809,46.56,16.109,16.095,37.59798783]
[1673526018025,160.3982,16.11,16.097,20.0]
[1673526018552,20.0,16.109,16.097,16.63798783]
[1673526018962,20.0,16.109,16.095,62.40279528]
[1673526019180,20.0,16.109,16.095,79.04078311]
[1673526019622,160.3982,16.11,16.096,20.0]
[1673526023087,160.3982,16.11,16.095,62.40279528]
[1673526024665,160.3982,16.11,16.096,20.0]
[1673526026137,160.3982,16.11,16.095,62.40279528]
[1673526026553,173.5582,16.11,16.095,62.40279528]
[1673526026747,17.0,16.109,16.095,20.0]
[1673526026958,20.0,16.107,16.093,20.0]
[1673526027176,46.57,16.106,16.093,20.0]
[1673526028010,46.57,16.106,16.093,40.0]
[1673526028767,46.57,16.106,16.093,82.40279528]
[1673526029895,46.57,16.107,16.093,82.40279528]
[1673526032231,46.57,16.107,16.093,62.40279528]
[1673526032459,46.57,16.107,16.094,17.0]
[1673526032638,46.57,16.107,16.095,20.0]
[1673526033892,20.0,16.105,16.091,34.0062135]
[1673526034225,13.13,16.1,16.081,129.2692]
[1673526034415,46.59,16.099,16.081,129.2692]
[1673526034627,17.0,16.098,16.083,33.26088017]
[1673526034837,20.0,16.096,16.083,33.26088017]
[1673526035050,46.6,16.095,16.083,33.26088017]
[1673526035683,46.6,16.095,16.084,20.0]
[1673526036116,46.6,16.095,16.085,33.26088017]
[1673526036313,46.6,16.095,16.086,20.0]
[1673526038111,46.6,16.095,16.082,20.0]
[1673526038512,0.72056217,16.094,16.082,20.0]
[1673526038721,20.0,16.092,16.082,20.0]
[1673526038932,0.72056217,16.091,16.082,20.0]
[1673526039159,20.0,16.092,16.082,20.0]
[1673526040316,0.64367669,16.091,16.082,20.0]
[1673526040527,20.0,16.092,16.082,20.0]
[1673526042818,20.0,16.092,16.081,109.2692]
[1673526043029,20.0,16.092,16.075,69.898868]
[1673526043030,0.697351,16.091,16.075,69.898868]
[1673526043258,13.13,16.09,16.075,16.63798783]
[1673526043463,20.0,16.088,16.075,16.63798783]
[1673526043990,20.0,16.088,16.074,111.3775]
[1673526044408,20.0,16.088,16.075,20.0]
[1673526045987,20.0,16.088,16.076,17.0]
[1673526046205,46.62,16.089,16.076,37.0]
[1673526046517,164.332,16.091,16.077,20.0]
[1673526047167,108.5811,16.092,16.08,13.05]
[1673526047359,108.5811,16.092,16.081,20.0]
[1673526047547,108.5811,16.092,16.082,20.0]
[1673526048090,108.5811,16.092,16.083,20.0]
[1673526050084,108.5811,16.092,16.08,29.68798783]
[1673526050085,108.5811,16.092,16.081,20.0]
[1673526052513,46.61,16.091,16.081,20.0]
[1673526055674,20.0,16.091,16.077,79.26900878]
[1673526056012,46.61,16.09,16.077,79.26900878]
[1673526056636,46.61,16.09,16.077,33.26088017]
[1673526057560,46.61,16.09,16.074,111.3775]
[1673526057892,17.0,16.089,16.074,111.3775]
[1673526058204,46.62,16.088,16.074,111.3775]
[1673526058952,17.0,16.087,16.074,111.3775]
[1673526059172,46.63,16.086,16.075,20.0]
[1673526059883,46.62,16.088,16.075,20.0]
[1673526060300,46.62,16.088,16.075,40.0]
[1673526060510,20.0,16.087,16.075,20.0]
[1673526064216,20.0,16.087,16.075,36.63798783]
[1673526065471,46.62,16.088,16.075,36.63798783]
[1673526067888,46.62,16.088,16.076,17.0]
[1673526070521,66.62,16.089,16.076,17.0]
[1673526071669,46.62,16.089,16.076,17.0]
[1673526072838,46.62,16.089,16.077,16.63798783]
[1673526073891,20.0,16.088,16.075,20.0]
[1673526074823,20.0,16.088,16.076,17.0]
[1673526075757,46.62,16.087,16.076,17.0]
[1673526075967,20.0,16.086,16.076,17.0]
[1673526077453,46.62,16.087,16.076,17.0]
[1673526078701,66.62,16.088,16.076,17.0]
[1673526078911,108.8156,16.09,16.076,17.0]
[1673526079343,46.6,16.094,16.08,17.44]